fUSD/lending_fUSD_20240328
["ID","MTS","AMOUNT","RATE_DAILY","PERIOD"]
[320836478,1711609849420,-504.34730069,0.00054246,120]
[320836479,1711609849429,-500.0,0.00054246,120]
[320836480,1711609849438,-502.58397041,0.00054246,120]
[320836481,1711609849448,-579.81460755,0.00054246,120]
[320836482,1711609849458,-500.0,0.00054246,120]
[320836483,1711609849468,-507.15465286,0.00054246,120]
[320836484,1711609849478,-500.0,0.00054246,120]
[320836485,1711609849492,-500.0,0.00054246,120]
[320836486,1711609849501,-155.42178894,0.00054246,120]
[320836487,1711609849511,-518.55179161,0.00054246,120]
[320836488,1711609849520,-500.0,0.00054246,120]
[320836489,1711609849529,-512.63948941,0.00054246,120]
[320836490,1711609849538,-501.46085176,0.00054246,120]
[320836491,1711609849547,-500.0,0.00054246,120]
[320836492,1711609849556,-500.0,0.00054246,120]
[320836493,1711609849566,-518.73193712,0.00054246,120]
[320836494,1711609849575,-501.46622829,0.00054246,120]
[320836495,1711609849584,-501.37721257,0.00054246,120]
[320836496,1711609849594,-500.0,0.00054246,120]
[320836497,1711609849603,-500.0,0.00054246,120]
[320836498,1711609849612,-500.0,0.00054246,120]
[320836499,1711609849623,-500.0,0.00054246,120]
[320836500,1711609849632,-500.0,0.00054246,120]
[320836501,1711609849641,-500.0,0.00054246,120]
[320836502,1711609849651,-500.0,0.00054246,120]
[320836503,1711609849660,-500.0,0.00054246,120]
[320836504,1711609849669,-500.0,0.00054246,120]
[320836505,1711609849679,-500.0,0.00054246,120]
[320836506,1711609849689,-500.90682817,0.00054246,120]
[320836507,1711609849699,-500.0,0.00054246,120]
[320836508,1711609849708,-500.0,0.00054246,120]
[320836509,1711609849717,-509.83350461,0.00054246,120]
[320836510,1711609849727,-415.95078869,0.00054246,120]
[320836511,1711609849736,-500.0,0.00054246,120]
[320836512,1711609849745,-504.5557741,0.00054246,120]
[320836513,1711609849754,-510.48078272,0.00054246,120]
[320836514,1711609849764,-507.75028116,0.00054246,120]
[320836515,1711609849773,-504.86410079,0.00054246,120]
[320836516,1711609849782,-500.0,0.00054246,120]
[320836517,1711609849792,-500.0,0.00054246,120]
[320836518,1711609849801,-500.0,0.00054246,120]
[320836519,1711609849810,-527.2820317,0.00054246,120]
[320836520,1711609849819,-151.0,0.00054246,120]
[320836521,1711609849828,-262.73793,0.00054246,120]
[320836522,1711609849838,-500.0,0.00054246,120]
[320836523,1711609849847,-514.92382077,0.00054246,120]
[320836524,1711609849856,-500.0,0.00054246,120]
[320836525,1711609849866,-384.76790661,0.00054246,120]
[320836526,1711609849876,-500.0,0.00054246,120]
[320836527,1711609849886,-500.0,0.00054246,120]
[320836528,1711609849895,-516.07035867,0.00054246,120]
[320836529,1711609849905,-502.22796587,0.00054246,120]
[320836530,1711609849915,-500.0,0.00054246,2]
[320836531,1711609849925,-507.88766566,0.00054246,120]
[320836532,1711609849936,-500.0,0.00054246,120]
[320836533,1711609849945,-500.0,0.00054246,120]
[320836534,1711609849959,-501.43542409,0.00054246,120]
[320836535,1711609849968,-508.69498406,0.00054246,120]
[320836536,1711609849977,-500.0,0.00054246,120]
[320836537,1711609849986,-500.0,0.00054246,120]
[320836538,1711609849996,-500.0,0.00054246,120]
[320836539,1711609850005,-500.0,0.00054246,120]
[320836540,1711609850015,-500.0,0.00054246,120]
[320836541,1711609850025,-500.0,0.00054246,120]
[320836542,1711609850036,-502.40537414,0.00054246,120]
[320836543,1711609850046,-503.85418685,0.00054246,120]
[320836544,1711609850056,-644.17549031,0.00054246,120]
[320836545,1711609850065,-500.0,0.00054246,120]
[320836546,1711609850074,-503.75132415,0.00054246,120]
[320836547,1711609850084,-500.0,0.00054246,120]
[320836548,1711609850093,-500.0,0.00054246,120]
[320836549,1711609850103,-500.0,0.00054246,120]
[320836550,1711609850113,-500.0,0.00054246,120]
[320836551,1711609850124,-502.90335493,0.00054246,120]
[320836552,1711609850133,-500.77083923,0.00054246,120]
[320836553,1711609850143,-522.63639361,0.00054246,120]
[320836554,1711609850152,-500.0,0.00054246,120]
[320836555,1711609850161,-503.33294896,0.00054246,30]
[320836556,1711609850171,-500.0,0.00054246,120]
[320836557,1711609850181,-301.2732102,0.00054246,2]
[320836558,1711609850191,-500.0,0.00054246,120]
[320836559,1711609850201,-500.0,0.00054246,120]
[320836560,1711609850212,-500.0,0.00054246,120]
[320836561,1711609850222,-500.0,0.00054246,120]
[320836562,1711609850232,-500.0,0.00054246,120]
[320836563,1711609850241,-362.70149894,0.00054246,120]
[320836564,1711609850250,-504.12047471,0.00054246,120]
[320836565,1711609850260,-500.0,0.00054246,120]
[320836566,1711609850269,-502.64010388,0.00054246,120]
[320836567,1711609850279,-500.0,0.00054246,120]
[320836568,1711609850288,-500.0,0.00054246,15]
[320836569,1711609850298,-502.49540243,0.00054246,120]
[320836570,1711609850307,-500.0,0.00054246,120]
[320836571,1711609850317,-500.0,0.00054246,120]
[320836572,1711609850326,-508.07317167,0.00054246,120]
[320836573,1711609850335,-500.0,0.00054246,120]
[320836574,1711609850343,-600.0,0.00054246,120]
[320836575,1711609850353,-507.44685681,0.00054246,120]
[320836576,1711609850362,-502.51715408,0.00054246,120]
[320836577,1711609850374,-500.0,0.00054246,120]
[320836578,1711609850383,-502.51510048,0.00054246,120]
[320836579,1711609850393,-371.71491884,0.00054246,120]
[320836580,1711609850403,-500.0,0.00054246,120]
[320836581,1711609850416,-501.45816194,0.00054246,120]
[320836582,1711609850425,-500.0,0.00054246,120]
[320836583,1711609850435,-500.0,0.00054246,120]
[320836584,1711609850444,-512.37108469,0.00054246,120]
[320836585,1711609850454,-504.29426676,0.00054246,120]
[320836586,1711609850464,-500.0,0.00054246,120]
[320836587,1711609850475,-507.15651923,0.00054246,120]
[320836588,1711609850485,-500.0,0.00054246,120]
[320836589,1711609850495,-507.68007672,0.00054246,120]
[320836590,1711609850506,-210.4485785,0.00054246,120]
[320836591,1711609850516,-500.0,0.00054246,120]
[320836592,1711609850526,-502.83634196,0.00054246,120]
[320836593,1711609850535,-500.0,0.00054246,120]
[320836594,1711609850545,-500.0,0.00054246,120]
[320836595,1711609850554,-638.47377254,0.00054246,120]
[320836596,1711609850564,-506.72139239,0.00054246,120]
[320836597,1711609850575,-502.36390759,0.00054246,120]
[320836598,1711609850585,-501.61863338,0.00054246,120]
[320836599,1711609850594,-504.86817104,0.00054246,120]
[320836600,1711609850604,-500.0,0.00054246,120]
[320836601,1711609850613,-500.0,0.00054246,120]
[320836602,1711609850629,-637.11260864,0.00054246,120]
[320836603,1711609850640,-500.0,0.00054246,120]
[320836604,1711609850651,-502.21441092,0.00054246,120]
[320836605,1711609850662,-517.01719658,0.00054246,120]
[320836606,1711609850773,-504.62104948,0.00054246,120]
[320836607,1711609850784,-500.76995459,0.00054246,2]
[320836608,1711609850793,-502.19173494,0.00054246,120]
[320836609,1711609850803,-500.0,0.00054246,120]
[320836610,1711609850813,-506.4365901,0.00054246,120]
[320836611,1711609850823,-500.0,0.00054246,120]
[320836612,1711609850833,-513.44998194,0.00054246,120]
[320836613,1711609850844,-506.3433952,0.00054246,120]
[320836614,1711609850855,-500.0,0.00054246,120]
[320836615,1711609850865,-500.0,0.00054246,120]
[320836616,1711609850878,-151.22234802,0.00054246,120]
[320836617,1711609850889,-500.0,0.00054246,120]
[320836618,1711609850900,-384.33065719,0.00054246,120]
[320836619,1711609850911,-500.0,0.00054246,120]
[320836620,1711609850921,-500.0,0.00054246,120]
[320836621,1711609850932,-504.30673332,0.00054246,120]
[320836622,1711609850943,-500.0,0.00054246,120]
[320836623,1711609850954,-503.81847993,0.00054246,120]
[320836624,1711609850965,-500.0,0.00054246,120]
[320836625,1711609850976,-501.50723725,0.00054246,120]
[320836626,1711609850985,-500.0,0.00054246,120]
[320836627,1711609850996,-506.50864297,0.00054246,120]
[320836628,1711609851006,-500.0,0.00054246,120]
[320836629,1711609851015,-510.32476069,0.00054246,120]
[320836630,1711609851026,-500.0,0.00054246,120]
[320836631,1711609851037,-302.58628854,0.00054246,120]
[320836632,1711609851047,-500.0,0.00054246,120]
[320836633,1711609851057,-500.0,0.00054246,120]
[320836634,1711609851068,-504.4797832,0.00054246,120]
[320836635,1711609851078,-500.0,0.00054246,120]
[320836636,1711609851089,-500.0,0.00054246,120]
[320836637,1711609851098,-199.35234891,0.00054246,120]
[320836638,1711609851108,-514.40303625,0.00054246,120]
[320836639,1711609851120,-500.0,0.00054246,120]
[320836640,1711609851131,-500.0,0.00054246,120]
[320836641,1711609851142,-500.0,0.00054246,120]
[320836642,1711609851152,-514.12397794,0.00054246,120]
[320836643,1711609851162,-500.0,0.00054246,120]
[320836644,1711609851173,-500.0,0.00054246,120]
[320836645,1711609851184,-155.6661005,0.00054246,120]
[320836646,1711609851194,-505.00318065,0.00054246,120]
[320836647,1711609851205,-500.0,0.00054246,120]
[320836648,1711609851216,-504.1436893,0.00054246,120]
[320836649,1711609851226,-501.34744825,0.00054246,120]
[320836650,1711609851237,-500.0,0.00054246,120]
[320836651,1711609851249,-500.0,0.00054246,120]
[320836652,1711609851259,-500.0,0.00054246,120]
[320836653,1711609851270,-500.0,0.00054246,120]
[320836654,1711609851280,-500.92181942,0.00054246,120]
[320836655,1711609851289,-500.0,0.00054246,120]
[320836656,1711609851300,-500.0,0.00054246,120]
[320836657,1711609851310,-500.0,0.00054246,120]
[320836658,1711609851321,-500.0,0.00054246,120]
[320836659,1711609851332,-500.0,0.00054246,120]
[320836660,1711609851343,-504.9932965,0.00054246,120]
[320836661,1711609851354,-500.0,0.00054246,120]
[320836662,1711609851365,-506.15589208,0.00054246,120]
[320836663,1711609851378,-510.87969316,0.00054246,120]
[320836664,1711609851388,-211.65442541,0.00054246,120]
[320836665,1711609851399,-505.34799645,0.00054246,120]
[320836666,1711609851409,-505.06358911,0.00054246,120]
[320836667,1711609851420,-443.05175561,0.00054246,120]
[320836668,1711609851431,-500.0,0.00054246,120]
[320836669,1711609851442,-500.0,0.00054246,120]
[320836670,1711609851453,-500.0,0.00054246,120]
[320836671,1711609851463,-591.35777916,0.00054246,120]
[320836672,1711609851474,-501.62095653,0.00054246,120]
[320836673,1711609851485,-1212.05,0.00054246,120]
[320836674,1711609851501,-504.47366724,0.00054246,120]
[320836675,1711609851523,-500.0,0.00054246,120]
[320836676,1711609851541,-500.0,0.00054246,120]
[320836677,1711609851562,-503.07587438,0.00054246,120]
[320836678,1711609851579,-507.02185878,0.00054246,120]
[320836679,1711609851596,-500.0,0.00054246,120]
[320836680,1711609851615,-500.0,0.00054246,120]
[320836681,1711609851634,-502.72724782,0.00054246,7]
[320836682,1711609851657,-500.0,0.00054246,120]
[320836683,1711609851678,-503.09343699,0.00054246,120]
[320836684,1711609851696,-500.0,0.00054246,120]
[320836685,1711609851719,-507.83984741,0.00054246,120]
[320836686,1711609851740,-505.12855246,0.00054246,120]
[320836687,1711609851753,-500.0,0.00054246,120]
[320836688,1711609851772,-500.0,0.00054246,120]
[320836689,1711609851791,-502.54311821,0.00054246,120]
[320836690,1711609851805,-500.0,0.00054246,120]
[320836691,1711609851821,-502.52626021,0.00054246,120]
[320836692,1711609851837,-502.62737985,0.00054246,120]
[320836693,1711609851855,-500.0,0.00054246,120]
[320836694,1711609851872,-500.0,0.00054246,120]
[320836695,1711609851890,-501.04172331,0.00054246,120]
[320836696,1711609851909,-500.0,0.00054246,120]
[320836697,1711609851926,-1000.0,0.00054246,2]
[320836698,1711609851942,-500.0,0.00054246,120]
[320836699,1711609851959,-500.0,0.00054246,120]
[320836700,1711609851975,-500.0,0.00054246,120]
[320836701,1711609851990,-500.0,0.00054246,120]
[320836702,1711609852005,-500.0,0.00054246,120]
[320836703,1711609852020,-501.66924364,0.00054246,120]
[320836704,1711609852037,-500.0,0.00054246,120]
[320836705,1711609852052,-500.0,0.00054246,120]
[320836706,1711609852068,-505.96880625,0.00054246,120]
[320836707,1711609852083,-500.0,0.00054246,120]
[320836708,1711609852097,-500.0,0.00054246,120]
[320836709,1711609852111,-605.92601376,0.00054246,120]
[320836710,1711609852128,-514.33146892,0.00054246,120]
[320836711,1711609852144,-500.0,0.00054246,120]
[320836712,1711609852159,-500.0,0.00054246,120]
[320836713,1711609852176,-170.2282901,0.00054246,120]
[320836714,1711609852190,-500.0,0.00054246,120]
[320836715,1711609852205,-500.0,0.00054246,120]
[320836716,1711609852220,-500.0,0.00054246,120]
[320836717,1711609852235,-500.0,0.00054246,120]
[320836718,1711609852250,-500.0,0.00054246,2]
[320836719,1711609852265,-500.0,0.00054246,120]
[320836720,1711609852280,-500.0,0.00054246,120]
[320836721,1711609852295,-500.0,0.00054246,120]
[320836722,1711609852310,-502.56403856,0.00054246,120]
[320836723,1711609852325,-503.78013634,0.00054246,120]
[320836724,1711609852340,-500.0,0.00054246,120]
[320836725,1711609852356,-505.20465344,0.00054246,120]
[320836726,1711609852372,-503.27943369,0.00054246,120]
[320836727,1711609852388,-501.19004871,0.00054246,120]
[320836728,1711609852404,-500.0,0.00054246,120]
[320836729,1711609852420,-500.0,0.00054246,120]
[320836730,1711609852437,-500.0,0.00054246,120]
[320836731,1711609852452,-510.53352636,0.00054246,120]
[320836732,1711609852468,-500.0,0.00054246,120]
[320836733,1711609852485,-505.18299757,0.00054246,120]
[320836734,1711609852501,-500.0,0.00054246,120]
[320836735,1711609852517,-504.07728011,0.00054246,120]
[320836736,1711609852534,-500.0,0.00054246,120]
[320836737,1711609852551,-500.0,0.00054246,120]
[320836738,1711609852566,-503.221713,0.00054246,120]
[320836739,1711609852582,-508.10675378,0.00054246,120]
[320836740,1711609852599,-500.0,0.00054246,120]
[320836741,1711609852618,-504.06125272,0.00054246,120]
[320836742,1711609852635,-508.61066744,0.00054246,120]
[320836743,1711609852652,-500.0,0.00054246,120]
[320836744,1711609852814,-501.78755714,0.00054246,120]
[320836745,1711609852827,-500.0,0.00054246,120]
[320836746,1711609852838,-500.0,0.00054246,120]
[320836747,1711609852849,-500.0,0.00054246,120]
[320836748,1711609852859,-500.0,0.00054246,120]
[320836749,1711609852870,-158.49231647,0.00054246,120]
[320836750,1711609852881,-500.76365587,0.00054246,120]
[320836751,1711609852892,-500.0,0.00054246,120]
[320836752,1711609852904,-500.0,0.00054246,120]
[320836753,1711609852916,-503.25344251,0.00054246,120]
[320836754,1711609852929,-500.0,0.00054246,120]
[320836755,1711609852940,-500.0,0.00054246,120]
[320836756,1711609852951,-500.0,0.00054246,120]
[320836757,1711609852964,-500.0,0.00054246,120]
[320836758,1711609852977,-500.0,0.00054246,120]
[320836759,1711609852988,-500.0,0.00054246,120]
[320836760,1711609853000,-501.41530715,0.00054246,120]
[320836761,1711609853011,-500.0,0.00054246,120]
[320836762,1711609853021,-500.0,0.00054246,120]
[320836763,1711609853032,-497.74097874,0.00054246,120]
[320836764,1711609853042,-500.0,0.00054246,120]
[320836765,1711609853052,-640.29915416,0.00054246,120]
[320836766,1711609853061,-500.0,0.00054246,120]
[320836767,1711609853070,-615.08,0.00054246,120]
[320836768,1711609853079,-504.72223889,0.00054246,120]
[320836769,1711609853089,-500.0,0.00054246,120]
[320836770,1711609853099,-504.85261154,0.00054246,120]
[320836771,1711609853110,-500.0,0.00054246,120]
[320836772,1711609853121,-500.0,0.00054246,120]
[320836773,1711609853131,-500.0,0.00054246,120]
[320836774,1711609853141,-500.0,0.00054246,120]
[320836775,1711609853151,-500.0,0.00054246,120]
[320836776,1711609853161,-500.0,0.00054246,120]
[320836777,1711609853170,-500.0,0.00054246,120]
[320836778,1711609853179,-501.54506847,0.00054246,120]
[320836779,1711609853189,-500.0,0.00054246,120]
[320836780,1711609853198,-500.0,0.00054246,120]
[320836781,1711609853208,-500.0,0.00054246,120]
[320836782,1711609853217,-500.0,0.00054246,120]
[320836783,1711609853226,-505.82458318,0.00054246,120]
[320836784,1711609853237,-500.0,0.00054246,120]
[320836785,1711609853248,-1327.57,0.00054246,120]
[320836786,1711609853258,-502.14026829,0.00054246,120]
[320836787,1711609853268,-508.22582729,0.00054246,120]
[320836788,1711609853278,-501.1003039,0.00054246,120]
[320836789,1711609853288,-503.43272351,0.00054246,120]
[320836790,1711609853298,-500.0,0.00054246,120]
[320836791,1711609853309,-500.0,0.00054246,120]
[320836792,1711609853319,-506.6651051,0.00054246,120]
[320836793,1711609853329,-510.56019485,0.00054246,120]
[320836794,1711609853340,-503.91467861,0.00054246,120]
[320836795,1711609853349,-500.0,0.00054246,120]
[320836796,1711609853359,-500.0,0.00054246,120]
[320836797,1711609853369,-500.0,0.00054246,120]
[320836798,1711609853378,-500.0,0.00054246,120]
[320836799,1711609853388,-500.0,0.00054246,120]
[320836800,1711609853398,-500.0,0.00054246,120]
[320836801,1711609853408,-503.57954647,0.00054246,120]
[320836802,1711609853419,-500.0,0.00054246,120]
[320836803,1711609853428,-500.0,0.00054246,120]
[320836804,1711609853439,-500.0,0.00054246,120]
[320836805,1711609853450,-500.0,0.00054246,120]
[320836806,1711609853461,-501.16596628,0.00054246,120]
[320836807,1711609853471,-502.96135499,0.00054246,120]
[320836808,1711609853480,-500.0,0.00054246,120]
[320836809,1711609853489,-640.12,0.00054246,120]
[320836810,1711609853498,-847.48,0.00054246,120]
[320836811,1711609853517,-505.79316002,0.00054246,120]
[320836812,1711609853528,-500.0,0.00054246,120]
[320836813,1711609853537,-500.0,0.00054246,120]
[320836814,1711609853547,-500.0,0.00054246,120]
[320836815,1711609853559,-500.0,0.00054246,120]
[320836816,1711609853570,-500.0,0.00054246,60]
[320836817,1711609853580,-500.0,0.00054246,120]
[320836818,1711609853589,-500.0,0.00054246,120]
[320836819,1711609853600,-500.0,0.00054246,120]
[320836820,1711609853610,-503.6937618,0.00054246,120]
[320836821,1711609853620,-500.0,0.00054246,120]
[320836822,1711609853632,-500.0,0.00054246,120]
[320836823,1711609853642,-506.54949446,0.00054246,120]
[320836824,1711609853651,-500.0,0.00054246,120]
[320836825,1711609853661,-500.0,0.00054246,120]
[320836826,1711609853671,-503.43936866,0.00054246,120]
[320836827,1711609853681,-500.0,0.00054246,120]
[320836828,1711609853690,-504.56268446,0.00054246,120]
[320836829,1711609853699,-500.0,0.00054246,120]
[320836830,1711609853709,-496.6882494,0.00054246,120]
[320836831,1711609853719,-1588.55,0.00054246,120]
[320836832,1711609853728,-504.52006354,0.00054246,120]
[320836833,1711609853738,-500.0,0.00054246,120]
[320836834,1711609853747,-502.44986411,0.00054246,120]
[320836835,1711609853758,-960.16,0.00054246,120]
[320836836,1711609853767,-500.0,0.00054246,120]
[320836837,1711609853777,-501.23027647,0.00054246,120]
[320836838,1711609853786,-503.16085386,0.00054246,120]
[320836839,1711609853795,-1394.44,0.00054246,120]
[320836840,1711609853805,-1101.38,0.00054246,120]
[320836841,1711609853814,-500.0,0.00054246,120]
[320836842,1711609853824,-501.3426314,0.00054246,120]
[320836843,1711609853834,-500.0,0.00054246,120]
[320836844,1711609853845,-500.0,0.00054246,120]
[320836845,1711609853854,-500.0,0.00054246,120]
[320836846,1711609853866,-500.0,0.00054246,120]
[320836847,1711609853876,-500.0,0.00054246,120]
[320836848,1711609853887,-501.15317218,0.00054246,120]
[320836849,1711609853897,-500.0,0.00054246,120]
[320836850,1711609853907,-500.0,0.00054246,120]
[320836851,1711609853919,-504.71624235,0.00054246,120]
[320836852,1711609853928,-506.53407165,0.00054246,120]
[320836853,1711609853941,-500.0,0.00054246,120]
[320836854,1711609853952,-504.3557297,0.00054246,120]
[320836855,1711609853966,-666.38,0.00054246,120]
[320836856,1711609853977,-500.0,0.00054246,120]
[320836857,1711609853989,-500.0,0.00054246,120]
[320836858,1711609853999,-500.0,0.00054246,120]
[320836859,1711609854009,-500.0,0.00054246,120]
[320836860,1711609854019,-1312.28,0.00054246,120]
[320836861,1711609854031,-500.0,0.00054246,120]
[320836862,1711609854042,-1000.0,0.00054246,120]
[320836863,1711609854052,-526.13262179,0.00054246,120]
[320836864,1711609854063,-500.0,0.00054246,120]
[320836865,1711609854073,-500.0,0.00054246,120]
[320836866,1711609854083,-500.0,0.00054246,120]
[320836867,1711609854093,-500.0,0.00054246,120]
[320836868,1711609854103,-571.56,0.00054246,120]
[320836869,1711609854113,-508.15398083,0.00054246,120]
[320836870,1711609854124,-500.0,0.00054246,120]
[320836871,1711609854134,-504.38620269,0.00054246,120]
[320836872,1711609854144,-510.82802431,0.00054246,120]
[320836873,1711609854153,-500.0,0.00054246,120]
[320836874,1711609854164,-500.0,0.00054246,120]
[320836875,1711609854174,-500.0,0.00054246,120]
[320836876,1711609854184,-500.0,0.00054246,120]
[320836877,1711609854194,-500.0,0.00054246,120]
[320836878,1711609854203,-500.0,0.00054246,120]
[320836879,1711609854213,-500.0,0.00054246,120]
[320836880,1711609854226,-1138.52,0.00054246,120]
[320836881,1711609854236,-502.76804396,0.00054246,120]
[320836882,1711609854246,-500.0,0.00054246,120]
[320836883,1711609854255,-500.0,0.00054246,120]
[320836884,1711609854265,-500.0,0.00054246,120]
[320836885,1711609854275,-500.0,0.00054246,120]
[320836886,1711609854285,-500.0,0.00054246,120]
[320836887,1711609854296,-650.15,0.00054246,120]
[320836888,1711609854305,-501.28512946,0.00054246,120]
[320836889,1711609854315,-500.0,0.00054246,120]
[320836890,1711609854324,-500.0,0.00054246,120]
[320836891,1711609854334,-500.0,0.00054246,120]
[320836892,1711609854344,-509.97,0.00054246,120]
[320836893,1711609854353,-178.56036027,0.00054246,120]
[320836894,1711609854363,-500.0,0.00054246,120]
[320836895,1711609854373,-500.0,0.00054246,120]
[320836896,1711609854383,-500.0,0.00054246,120]
[320836897,1711609854393,-508.1436387,0.00054246,120]
[320836898,1711609854402,-692.48,0.00054246,120]
[320836899,1711609854412,-500.0,0.00054246,120]
[320836900,1711609854421,-500.0,0.00054246,120]
[320836901,1711609854431,-500.0,0.00054246,120]
[320836902,1711609854440,-500.0,0.00054246,120]
[320836903,1711609854450,-500.0,0.00054246,120]
[320836904,1711609854459,-500.0,0.00054246,120]
[320836905,1711609854468,-500.0,0.00054246,120]
[320836906,1711609854481,-500.0,0.00054246,120]
[320836907,1711609854491,-500.0,0.00054246,120]
[320836908,1711609854501,-500.0,0.00054246,120]
[320836909,1711609854511,-500.0,0.00054246,120]
[320836910,1711609854521,-500.0,0.00054246,120]
[320836911,1711609854532,-500.0,0.00054246,120]
[320836912,1711609854541,-500.0,0.00054246,120]
[320836913,1711609854551,-500.0,0.00054246,120]
[320836914,1711609854561,-505.0097288,0.00054246,120]
[320836915,1711609854571,-501.82323004,0.00054246,120]
[320836916,1711609854584,-500.0,0.00054246,120]
[320836917,1711609854595,-500.0,0.00054246,120]
[320836918,1711609854605,-500.0,0.00054246,120]
[320836919,1711609854615,-500.0,0.00054246,120]
[320836920,1711609854626,-500.0,0.00054246,120]
[320836921,1711609854635,-500.0,0.00054246,120]
[320836922,1711609854646,-502.67234603,0.00054246,120]
[320836923,1711609854656,-500.0,0.00054246,120]
[320836924,1711609854666,-500.0,0.00054246,120]
[320836925,1711609854676,-500.0,0.00054246,120]
[320836926,1711609854687,-500.0,0.00054246,120]
[320836927,1711609854697,-500.0,0.00054246,120]
[320836928,1711609854707,-502.48198571,0.00054246,120]
[320836929,1711609854717,-765.1,0.00054246,120]
[320836930,1711609854727,-505.24980131,0.00054246,120]
[320836931,1711609854737,-527.28,0.00054246,120]
[320836932,1711609854746,-502.25816546,0.00054246,120]
[320836933,1711609854757,-500.0,0.00054246,120]
[320836934,1711609854767,-500.0,0.00054246,120]
[320836935,1711609854777,-500.0,0.00054246,120]
[320836936,1711609854786,-504.66810043,0.00054246,120]
[320836937,1711609854795,-500.0,0.00054246,120]
[320836938,1711609854805,-840.74,0.00054246,120]
[320836939,1711609854815,-500.0,0.00054246,120]
[320836940,1711609854974,-500.0,0.00054246,120]
[320836941,1711609854984,-500.0,0.00054246,120]
[320836942,1711609854994,-504.00900575,0.00054246,120]
[320836943,1711609855005,-510.7098903,0.00054246,120]
[320836944,1711609855015,-500.0,0.00054246,120]
[320836945,1711609855027,-500.0,0.00054246,120]
[320836946,1711609855038,-500.0,0.00054246,120]
[320836947,1711609855047,-507.60168657,0.00054246,120]
[320836948,1711609855057,-500.0,0.00054246,120]
[320836949,1711609855067,-500.0,0.00054246,120]
[320836950,1711609855077,-506.71770232,0.00054246,120]
[320836951,1711609855087,-500.0,0.00054246,120]
[320836952,1711609855096,-558.91146281,0.00054246,120]
[320836953,1711609855106,-500.0,0.00054246,120]
[320836954,1711609855116,-500.0,0.00054246,120]
[320836955,1711609855128,-506.19845332,0.00054246,120]
[320836956,1711609855137,-500.0,0.00054246,120]
[320836957,1711609855146,-504.30539868,0.00054246,120]
[320836958,1711609855156,-500.0,0.00054246,120]
[320836959,1711609855165,-502.07182904,0.00054246,120]
[320836960,1711609855175,-500.0,0.00054246,120]
[320836961,1711609855184,-500.0,0.00054246,120]
[320836962,1711609855194,-500.8895538,0.00054246,120]
[320836963,1711609855204,-500.0,0.00054246,120]
[320836964,1711609855214,-500.0,0.00054246,120]
[320836965,1711609855224,-504.08010197,0.00054246,120]
[320836966,1711609855235,-501.82879563,0.00054246,120]
[320836967,1711609855255,-500.0,0.00054246,120]
[320836968,1711609855268,-500.0,0.00054246,120]
[320836969,1711609855279,-500.0,0.00054246,120]
[320836970,1711609855289,-500.0,0.00054246,120]
[320836971,1711609855299,-500.0,0.00054246,120]
[320836972,1711609855309,-500.0,0.00054246,120]
[320836973,1711609855319,-500.0,0.00054246,120]
[320836974,1711609855329,-500.0,0.00054246,120]
[320836975,1711609855339,-500.0,0.00054246,120]
[320836976,1711609855349,-504.69431619,0.00054246,120]
[320836977,1711609855358,-500.0,0.00054246,120]